[Event "Gibraltar Masters 18th"]
[Site "Gibraltar"]
[Date "2020.01.27"]
[Round "7.19"]
[White "Abergel, Thal"]
[Black "Vocaturo, Daniele"]
[Result "0-1"]
[ECO "A15"]
[WhiteElo "2478"]
[BlackElo "2622"]
[PlyCount "90"]
[EventDate "2020.01.21"]
[EventType "swiss"]
[EventRounds "10"]
[EventCountry "GGB"]
[SourceTitle "BritBase"]
[Source "John Saunders"]
[SourceDate "2021.06.05"]
[SourceVersion "1"]
[SourceVersionDate "2021.06.05"]
[SourceQuality "1"]
[TimeControl "40/100:0"]
[WhiteClock "0:04:50"]
[BlackClock "0:23:40"]

1. Nf3 {[%emt 0:00:00]} Nf6 {[%emt 0:00:00]} 2. c4 {[%emt 0:00:00]} g6 {
[%emt 0:00:00]} 3. b3 {[%emt 0:00:00]} Bg7 {[%emt 0:00:00]} 4. Bb2 {[%emt 0:00:
00]} O-O {[%emt 0:00:00]} 5. g3 {[%emt 0:00:00]} d6 {[%emt 0:00:00]} 6. Bg2 {
[%emt 0:00:00]} e5 {[%emt 0:00:00]} 7. d3 {[%emt 0:00:00]} Nc6 {[%emt 0:00:00]}
8. O-O {[%emt 0:00:00]} Bf5 {[%emt 0:00:00]} 9. Nc3 {[%emt 0:00:00]} Qd7 {
[%emt 0:00:00]} 10. Re1 {[%emt 0:00:00]} Bh3 {[%emt 0:00:00]} 11. Bh1 {[%emt 0:
00:00]} h6 {[%emt 0:00:00]} 12. d4 {[%emt 0:00:00]} e4 {[%emt 0:00:00]} 13. d5
{[%emt 0:00:00]} Nb4 {[%emt 0:00:00]} 14. a3 {[%emt 0:00:00]} Na6 {[%emt 0:00:
00]} 15. Nd4 {[%emt 0:00:00]} e3 {[%emt 0:00:00]} 16. fxe3 {[%emt 0:00:00]}
Rae8 {[%emt 0:00:00]} 17. b4 {[%emt 0:00:00]} Ng4 {[%emt 0:00:00]} 18. e4 {
[%emt 0:00:00]} Ne5 {[%emt 0:00:00]} 19. e3 {[%emt 0:00:00]} Nxc4 {[%emt 0:00:
00]} 20. Qe2 {[%emt 0:00:00]} Nxb2 {[%emt 0:00:00]} 21. Qxb2 {[%emt 0:00:00]}
h5 {[%emt 0:00:00]} 22. Bg2 {[%emt 0:00:00]} Bg4 {[%emt 0:00:00]} 23. Qc2 {
[%emt 0:00:00]} h4 {[%emt 0:00:00]} 24. gxh4 {[%emt 0:00:00]} Qd8 {[%emt 0:00:
00]} 25. Qf2 {[%emt 0:00:00]} Bf6 {[%emt 0:00:00]} 26. Rf1 {[%emt 0:00:00]}
Bxh4 {[%emt 0:00:00]} 27. Qf4 {[%emt 0:00:00]} Bh5 {[%emt 0:00:00]} 28. Rac1 {
[%emt 0:00:00]} Qe7 {[%emt 0:00:00]} 29. Rc2 {[%emt 0:00:00]} f5 {[%emt 0:00:
00]} 30. Ne6 {[%emt 0:00:00]} g5 {[%emt 0:00:00]} 31. Qxf5 {[%emt 0:00:00]}
Rxf5 {[%emt 0:00:00]} 32. exf5 {[%emt 0:00:00]} g4 {[%emt 0:00:00]} 33. Ne4 {
[%emt 0:00:00]} Bf6 {[%emt 0:00:00]} 34. Ng3 {[%emt 0:00:00]} Qh7 {[%emt 0:00:
00]} 35. Rc4 {[%emt 0:00:00]} Qh6 {[%emt 0:00:00]} 36. Nxh5 {[%emt 0:00:00]}
Qxh5 {[%emt 0:00:00]} 37. Rff4 {[%emt 0:00:00]} Kf7 {[%emt 0:00:00]} 38. Rxg4 {
[%emt 0:00:00]} Rg8 {[%emt 0:00:00]} 39. h3 {[%emt 0:00:00]} Rxg4 {[%emt 0:00:
00]} 40. hxg4 {[%emt 0:00:00]} Qh4 {[%emt 0:00:00]} 41. Re4 {[%emt 0:00:00]}
Qe1+ {[%emt 0:00:00]} 42. Bf1 {[%emt 0:00:00]} Nb8 {[%emt 0:00:00]} 43. Kg2 {
[%emt 0:00:00]} Bh4 {[%emt 0:00:00]} 44. Rf4 {[%emt 0:00:00]} Nd7 {[%emt 0:00:
00]} 45. e4 {[%emt 0:00:00]} Nf6 {[%emt 0:00:00]} 0-1

[Event "Gibraltar Masters 18th"]
[Site "Gibraltar"]
[Date "2020.01.27"]
[Round "7.20"]
[White "Yilmaz, Mustafa"]
[Black "Pogonina, Natalija"]
[Result "1-0"]
[ECO "D35"]
[WhiteElo "2607"]
[BlackElo "2479"]
[PlyCount "93"]
[EventDate "2020.01.21"]
[EventType "swiss"]
[EventRounds "10"]
[EventCountry "GGB"]
[SourceTitle "BritBase"]
[Source "John Saunders"]
[SourceDate "2021.06.05"]
[SourceVersion "1"]
[SourceVersionDate "2021.06.05"]
[SourceQuality "1"]
[TimeControl "40/100:0"]
[WhiteClock "0:54:21"]
[BlackClock "0:48:28"]

1. c4 {[%emt 0:00:00]} e6 {[%emt 0:00:00]} 2. Nc3 {[%emt 0:00:00]} d5 {[%emt 0:
00:00]} 3. d4 {[%emt 0:00:00]} Nf6 {[%emt 0:00:00]} 4. cxd5 {[%emt 0:00:00]}
exd5 {[%emt 0:00:00]} 5. Bg5 {[%emt 0:00:00]} c6 {[%emt 0:00:00]} 6. e3 {
[%emt 0:00:00]} Be7 {[%emt 0:00:00]} 7. Bd3 {[%emt 0:00:00]} Nbd7 {[%emt 0:00:
00]} 8. Nf3 {[%emt 0:00:00]} Nh5 {[%emt 0:00:00]} 9. Bxe7 {[%emt 0:00:00]} Qxe7
{[%emt 0:00:00]} 10. O-O {[%emt 0:00:00]} O-O {[%emt 0:00:00]} 11. Qb1 {
[%emt 0:00:00]} Nhf6 {[%emt 0:00:00]} 12. b4 {[%emt 0:00:00]} a5 {[%emt 0:00:
00]} 13. bxa5 {[%emt 0:00:00]} Rxa5 {[%emt 0:00:00]} 14. a4 {[%emt 0:00:00]}
Qd6 {[%emt 0:00:00]} 15. Rc1 {[%emt 0:00:00]} Re8 {[%emt 0:00:00]} 16. Nd2 {
[%emt 0:00:00]} Ra8 {[%emt 0:00:00]} 17. a5 {[%emt 0:00:00]} h5 {[%emt 0:00:00]
} 18. Nf3 {[%emt 0:00:00]} g6 {[%emt 0:00:00]} 19. Qc2 {[%emt 0:00:00]} Kg7 {
[%emt 0:00:00]} 20. Ne2 {[%emt 0:00:00]} Ra7 {[%emt 0:00:00]} 21. Nf4 {[%emt 0:
00:00]} Ng8 {[%emt 0:00:00]} 22. a6 {[%emt 0:00:00]} Ne7 {[%emt 0:00:00]} 23.
axb7 {[%emt 0:00:00]} Rxa1 {[%emt 0:00:00]} 24. Rxa1 {[%emt 0:00:00]} Bxb7 {
[%emt 0:00:00]} 25. Bf1 {[%emt 0:00:00]} Ra8 {[%emt 0:00:00]} 26. Rb1 {[%emt 0:
00:00]} Bc8 {[%emt 0:00:00]} 27. Rc1 {[%emt 0:00:00]} Rb8 {[%emt 0:00:00]} 28.
Qa2 {[%emt 0:00:00]} Qb4 {[%emt 0:00:00]} 29. Nd3 {[%emt 0:00:00]} Qb3 {
[%emt 0:00:00]} 30. Qa5 {[%emt 0:00:00]} Qb6 {[%emt 0:00:00]} 31. Qa3 {[%emt 0:
00:00]} Qd8 {[%emt 0:00:00]} 32. h3 {[%emt 0:00:00]} Nf6 {[%emt 0:00:00]} 33.
Nfe5 {[%emt 0:00:00]} Bd7 {[%emt 0:00:00]} 34. Nc5 {[%emt 0:00:00]} Be8 {
[%emt 0:00:00]} 35. Ra1 {[%emt 0:00:00]} Nd7 {[%emt 0:00:22]} 36. Ncxd7 {
[%emt 0:00:00]} Bxd7 {[%emt 0:00:00]} 37. Qc5 {[%emt 0:00:00]} Be8 {[%emt 0:00:
02]} 38. Bd3 {[%emt 0:00:00]} Kf8 {[%emt 0:00:15]} 39. Ra7 {[%emt 0:00:00]} g5
{[%emt 0:00:04]} 40. Bf5 {[%emt 0:00:00]} Ra8 {[%emt 0:00:22]} 41. Rxa8 {
[%emt 0:00:00]} Qxa8 {[%emt 0:01:13]} 42. Qd6 {[%emt 0:00:00]} g4 {[%emt 0:00:
00]} 43. Qh6+ {[%emt 0:00:00]} Kg8 {[%emt 0:00:00]} 44. Bh7+ {[%emt 0:00:00]}
Kh8 {[%emt 0:00:00]} 45. Bg6+ {[%emt 0:00:00]} Kg8 {[%emt 0:00:00]} 46. Qh7+ {
[%emt 0:00:00]} Kf8 {[%emt 0:00:00]} 47. Bxf7 {[%emt 0:00:00]} 1-0

[Event "Gibraltar Masters 18th"]
[Site "Gibraltar"]
[Date "2020.01.27"]
[Round "7.21"]
[White "Song, Raymond"]
[Black "Can, Emre"]
[Result "1/2-1/2"]
[ECO "B51"]
[WhiteElo "2478"]
[BlackElo "2600"]
[PlyCount "77"]
[EventDate "2020.01.21"]
[EventType "swiss"]
[EventRounds "10"]
[EventCountry "GGB"]
[SourceTitle "BritBase"]
[Source "John Saunders"]
[SourceDate "2021.06.05"]
[SourceVersion "1"]
[SourceVersionDate "2021.06.05"]
[SourceQuality "1"]
[TimeControl "40/100:0"]
[WhiteClock "1:25:06"]
[BlackClock "0:07:31"]

1. e4 {[%emt 0:00:00]} c5 {[%emt 0:00:00]} 2. Nf3 {[%emt 0:00:00]} d6 {[%emt 0:
00:00]} 3. Bb5+ {[%emt 0:00:00]} Nd7 {[%emt 0:00:00]} 4. O-O {[%emt 0:00:00]}
a6 {[%emt 0:00:00]} 5. Bd3 {[%emt 0:00:00]} Ngf6 {[%emt 0:00:00]} 6. Re1 {
[%emt 0:00:00]} e6 {[%emt 0:00:00]} 7. c3 {[%emt 0:00:00]} b5 {[%emt 0:00:00]}
8. Bc2 {[%emt 0:00:00]} c4 {[%emt 0:00:00]} 9. a4 {[%emt 0:00:00]} Bb7 {
[%emt 0:00:00]} 10. d4 {[%emt 0:00:00]} cxd3 {[%emt 0:00:00]} 11. Qxd3 {
[%emt 0:00:00]} Nc5 {[%emt 0:00:00]} 12. Qe2 {[%emt 0:00:00]} bxa4 {[%emt 0:00:
00]} 13. Be3 {[%emt 0:00:00]} Nfd7 {[%emt 0:00:00]} 14. Bd4 {[%emt 0:00:00]} e5
{[%emt 0:00:00]} 15. Bxc5 {[%emt 0:00:00]} Nxc5 {[%emt 0:00:00]} 16. Bxa4+ {
[%emt 0:00:00]} Nxa4 {[%emt 0:00:00]} 17. Rxa4 {[%emt 0:00:00]} Be7 {[%emt 0:
00:00]} 18. c4 {[%emt 0:00:00]} O-O {[%emt 0:00:00]} 19. Nc3 {[%emt 0:00:00]}
Bc6 {[%emt 0:00:00]} 20. Ra2 {[%emt 0:00:00]} Qb8 {[%emt 0:00:00]} 21. Rea1 {
[%emt 0:00:00]} Qb7 {[%emt 0:00:00]} 22. c5 {[%emt 0:00:00]} dxc5 {[%emt 0:00:
00]} 23. Nxe5 {[%emt 0:00:00]} Bb5 {[%emt 0:00:00]} 24. Nc4 {[%emt 0:00:00]}
Rfe8 {[%emt 0:00:00]} 25. Nd5 {[%emt 0:00:00]} Bf8 {[%emt 0:00:00]} 26. b3 {
[%emt 0:00:00]} f5 {[%emt 0:00:00]} 27. f3 {[%emt 0:00:00]} Rad8 {[%emt 0:00:
00]} 28. Rd1 {[%emt 0:00:00]} Qf7 {[%emt 0:00:00]} 29. Rad2 {[%emt 0:00:00]}
Bc6 {[%emt 0:00:00]} 30. Qf2 {[%emt 0:00:00]} fxe4 {[%emt 0:00:00]} 31. fxe4 {
[%emt 0:00:00]} Qxf2+ {[%emt 0:00:00]} 32. Kxf2 {[%emt 0:00:00]} Rb8 {[%emt 0:
00:00]} 33. Na5 {[%emt 0:00:00]} Bb5 {[%emt 0:00:00]} 34. Kf3 {[%emt 0:00:00]}
Re6 {[%emt 0:00:00]} 35. Nf4 {[%emt 0:00:00]} Ree8 {[%emt 0:00:00]} 36. Nd5 {
[%emt 0:00:00]} Re6 {[%emt 0:00:00]} 37. Nf4 {[%emt 0:00:00]} Ree8 {[%emt 0:00:
00]} 38. Nd5 {[%emt 0:00:00]} Re6 {[%emt 0:00:00]} 39. Nf4 {[%emt 0:00:00]}
1/2-1/2

[Event "Gibraltar Masters 18th"]
[Site "Gibraltar"]
[Date "2020.01.27"]
[Round "7.22"]
[White "Abdumalik, Zhansaya"]
[Black "Vaibhav, Suri"]
[Result "1-0"]
[ECO "B90"]
[WhiteElo "2471"]
[BlackElo "2593"]
[PlyCount "65"]
[EventDate "2020.01.21"]
[EventType "swiss"]
[EventRounds "10"]
[EventCountry "GGB"]
[SourceTitle "BritBase"]
[Source "John Saunders"]
[SourceDate "2021.06.05"]
[SourceVersion "1"]
[SourceVersionDate "2021.06.05"]
[SourceQuality "1"]
[TimeControl "40/100:0"]
[WhiteClock "0:47:11"]
[BlackClock "0:07:38"]

1. e4 {[%emt 0:00:00]} c5 {[%emt 0:00:00]} 2. Nf3 {[%emt 0:00:00]} d6 {[%emt 0:
00:00]} 3. d4 {[%emt 0:00:00]} cxd4 {[%emt 0:00:00]} 4. Nxd4 {[%emt 0:00:00]}
Nf6 {[%emt 0:00:00]} 5. Nc3 {[%emt 0:00:00]} a6 {[%emt 0:00:00]} 6. h3 {
[%emt 0:00:00]} e5 {[%emt 0:00:00]} 7. Nde2 {[%emt 0:00:00]} h5 {[%emt 0:00:00]
} 8. g3 {[%emt 0:00:00]} Be6 {[%emt 0:00:00]} 9. Bg2 {[%emt 0:00:00]} b5 {
[%emt 0:00:00]} 10. a4 {[%emt 0:00:00]} b4 {[%emt 0:00:00]} 11. Nd5 {[%emt 0:
00:00]} a5 {[%emt 0:00:00]} 12. O-O {[%emt 0:00:00]} Be7 {[%emt 0:00:00]} 13.
c3 {[%emt 0:00:00]} Na6 {[%emt 0:00:00]} 14. Be3 {[%emt 0:00:00]} O-O {[%emt 0:
00:00]} 15. Bb6 {[%emt 0:00:00]} Qd7 {[%emt 0:00:00]} 16. Bxa5 {[%emt 0:00:00]}
Bxd5 {[%emt 0:00:00]} 17. exd5 {[%emt 0:00:00]} Rfb8 {[%emt 0:00:00]} 18. b3 {
[%emt 0:00:00]} Qb7 {[%emt 0:00:00]} 19. Rb1 {[%emt 0:00:00]} Nd7 {[%emt 0:00:
00]} 20. Nc1 {[%emt 0:00:00]} bxc3 {[%emt 0:00:00]} 21. Bxc3 {[%emt 0:00:00]}
Rc8 {[%emt 0:00:00]} 22. Na2 {[%emt 0:00:00]} Nf6 {[%emt 0:00:00]} 23. b4 {
[%emt 0:00:00]} Nc7 {[%emt 0:00:00]} 24. Bxe5 {[%emt 0:00:00]} dxe5 {[%emt 0:
00:00]} 25. d6 {[%emt 0:00:00]} e4 {[%emt 0:00:00]} 26. dxe7 {[%emt 0:00:00]}
Ncd5 {[%emt 0:00:00]} 27. Re1 {[%emt 0:00:00]} Nxe7 {[%emt 0:00:00]} 28. a5 {
[%emt 0:00:00]} Nc6 {[%emt 0:00:00]} 29. Nc3 {[%emt 0:00:00]} Rd8 {[%emt 0:00:
00]} 30. Qa4 {[%emt 0:00:00]} Rd2 {[%emt 0:00:00]} 31. Nxe4 {[%emt 0:00:00]}
Nxe4 {[%emt 0:00:00]} 32. Rxe4 {[%emt 0:00:00]} Qa7 {[%emt 0:00:00]} 33. Re3 {
[%emt 0:00:00]} 1-0

[Event "Gibraltar Masters 18th"]
[Site "Gibraltar"]
[Date "2020.01.27"]
[Round "7.23"]
[White "Kadric, Denis"]
[Black "Krishna, C R G."]
[Result "1/2-1/2"]
[ECO "C00"]
[WhiteElo "2585"]
[BlackElo "2436"]
[PlyCount "56"]
[EventDate "2020.01.21"]
[EventType "swiss"]
[EventRounds "10"]
[EventCountry "GGB"]
[SourceTitle "BritBase"]
[Source "John Saunders"]
[SourceDate "2021.06.05"]
[SourceVersion "1"]
[SourceVersionDate "2021.06.05"]
[SourceQuality "1"]
[TimeControl "40/100:0"]
[WhiteClock "0:45:46"]
[BlackClock "0:44:15"]

1. e4 {[%emt 0:00:00]} e6 {[%emt 0:00:00]} 2. d3 {[%emt 0:00:00]} d5 {[%emt 0:
00:00]} 3. Nd2 {[%emt 0:00:00]} c5 {[%emt 0:00:00]} 4. g3 {[%emt 0:00:00]} Nf6
{[%emt 0:00:00]} 5. e5 {[%emt 0:00:00]} Nfd7 {[%emt 0:00:00]} 6. f4 {[%emt 0:
00:00]} Nc6 {[%emt 0:00:00]} 7. Ndf3 {[%emt 0:00:00]} Be7 {[%emt 0:00:00]} 8.
Nh3 {[%emt 0:00:00]} O-O {[%emt 0:00:00]} 9. Bg2 {[%emt 0:00:00]} f6 {[%emt 0:
00:00]} 10. exf6 {[%emt 0:00:00]} Nxf6 {[%emt 0:00:00]} 11. O-O {[%emt 0:00:00]
} Qc7 {[%emt 0:00:00]} 12. Re1 {[%emt 0:00:00]} Bd6 {[%emt 0:00:00]} 13. Qe2 {
[%emt 0:00:00]} Bd7 {[%emt 0:00:00]} 14. c3 {[%emt 0:00:00]} Kh8 {[%emt 0:00:
00]} 15. Ne5 {[%emt 0:00:00]} Be8 {[%emt 0:00:00]} 16. Ng5 {[%emt 0:00:00]} Nd8
{[%emt 0:00:00]} 17. h3 {[%emt 0:00:00]} h6 {[%emt 0:00:00]} 18. Ngf3 {[%emt 0:
00:00]} Nd7 {[%emt 0:00:00]} 19. Kh2 {[%emt 0:00:00]} Nxe5 {[%emt 0:00:00]} 20.
Nxe5 {[%emt 0:00:00]} Nc6 {[%emt 0:00:00]} 21. Nxc6 {[%emt 0:00:00]} Bxc6 {
[%emt 0:00:00]} 22. d4 {[%emt 0:00:00]} cxd4 {[%emt 0:00:00]} 23. cxd4 {
[%emt 0:00:00]} Qb6 {[%emt 0:00:00]} 24. Be3 {[%emt 0:00:00]} Bb4 {[%emt 0:00:
00]} 25. Rec1 {[%emt 0:00:00]} Bd6 {[%emt 0:00:00]} 26. Re1 {[%emt 0:00:00]}
Bb4 {[%emt 0:00:00]} 27. Rec1 {[%emt 0:00:00]} Bd6 {[%emt 0:00:00]} 28. Re1 {
[%emt 0:00:00]} Bb4 {[%emt 0:00:12]} 1/2-1/2

[Event "Gibraltar Masters 18th"]
[Site "Gibraltar"]
[Date "2020.01.27"]
[Round "7.24"]
[White "Haug, Johannes"]
[Black "Idani, Pouya"]
[Result "1/2-1/2"]
[ECO "D37"]
[WhiteElo "2407"]
[BlackElo "2577"]
[PlyCount "76"]
[EventDate "2020.01.21"]
[EventType "swiss"]
[EventRounds "10"]
[EventCountry "GGB"]
[SourceTitle "BritBase"]
[Source "John Saunders"]
[SourceDate "2021.06.05"]
[SourceVersion "1"]
[SourceVersionDate "2021.06.05"]
[SourceQuality "1"]
[TimeControl "40/100:0"]
[WhiteClock "0:02:59"]
[BlackClock "0:37:23"]

1. d4 {[%emt 0:00:00]} Nf6 {[%emt 0:00:00]} 2. c4 {[%emt 0:00:00]} e6 {[%emt 0:
00:00]} 3. Nf3 {[%emt 0:00:00]} d5 {[%emt 0:00:00]} 4. Nc3 {[%emt 0:00:00]} a6
{[%emt 0:00:00]} 5. cxd5 {[%emt 0:00:00]} exd5 {[%emt 0:00:00]} 6. Bf4 {
[%emt 0:00:00]} Bd6 {[%emt 0:00:00]} 7. Bg3 {[%emt 0:00:00]} O-O {[%emt 0:00:
00]} 8. e3 {[%emt 0:00:00]} Bf5 {[%emt 0:00:00]} 9. Be2 {[%emt 0:00:00]} c6 {
[%emt 0:00:00]} 10. Qb3 {[%emt 0:00:00]} Bxg3 {[%emt 0:00:00]} 11. hxg3 {
[%emt 0:00:00]} Qc7 {[%emt 0:00:00]} 12. Ne5 {[%emt 0:00:00]} Nbd7 {[%emt 0:00:
00]} 13. g4 {[%emt 0:00:00]} Be6 {[%emt 0:00:00]} 14. Nxd7 {[%emt 0:00:00]}
Bxd7 {[%emt 0:00:00]} 15. g5 {[%emt 0:00:00]} Ng4 {[%emt 0:00:00]} 16. Qc2 {
[%emt 0:00:00]} g6 {[%emt 0:00:00]} 17. Nxd5 {[%emt 0:00:00]} Qa5+ {[%emt 0:00:
00]} 18. Nc3 {[%emt 0:00:00]} Rfe8 {[%emt 0:00:00]} 19. d5 {[%emt 0:00:00]}
cxd5 {[%emt 0:00:00]} 20. Qd2 {[%emt 0:00:00]} Rad8 {[%emt 0:00:00]} 21. Rh4 {
[%emt 0:00:00]} d4 {[%emt 0:00:00]} 22. Qxd4 {[%emt 0:00:00]} Bf5 {[%emt 0:00:
00]} 23. Qa4 {[%emt 0:00:00]} Qxa4 {[%emt 0:00:00]} 24. Nxa4 {[%emt 0:00:00]}
Re4 {[%emt 0:00:00]} 25. Nc5 {[%emt 0:00:00]} Nxe3 {[%emt 0:00:00]} 26. Rxe4 {
[%emt 0:00:00]} Nc2+ {[%emt 0:00:00]} 27. Kf1 {[%emt 0:00:00]} Nxa1 {[%emt 0:
00:00]} 28. Rc4 {[%emt 0:00:00]} b6 {[%emt 0:00:00]} 29. g4 {[%emt 0:00:00]}
Bb1 {[%emt 0:00:00]} 30. Rc1 {[%emt 0:00:00]} bxc5 {[%emt 0:00:00]} 31. Rxb1 {
[%emt 0:00:00]} Nc2 {[%emt 0:00:00]} 32. Rc1 {[%emt 0:00:00]} Rd2 {[%emt 0:00:
00]} 33. Bxa6 {[%emt 0:00:00]} Nb4 {[%emt 0:00:00]} 34. Bb5 {[%emt 0:00:00]}
Rxb2 {[%emt 0:00:00]} 35. a4 {[%emt 0:00:00]} Nc2 {[%emt 0:00:00]} 36. Bd3 {
[%emt 0:00:00]} Nb4 {[%emt 0:00:00]} 37. Bb5 {[%emt 0:00:00]} Nc2 {[%emt 0:00:
00]} 38. Bd3 {[%emt 0:00:00]} Nb4 {[%emt 0:00:00]} 1/2-1/2

[Event "Gibraltar Masters 18th"]
[Site "Gibraltar"]
[Date "2020.01.27"]
[Round "7.25"]
[White "Aryan, Chopra"]
[Black "Wemmers, Xander"]
[Result "1-0"]
[ECO "B12"]
[WhiteElo "2562"]
[BlackElo "2380"]
[PlyCount "87"]
[EventDate "2020.01.21"]
[EventType "swiss"]
[EventRounds "10"]
[EventCountry "GGB"]
[SourceTitle "BritBase"]
[Source "John Saunders"]
[SourceDate "2021.06.05"]
[SourceVersion "1"]
[SourceVersionDate "2021.06.05"]
[SourceQuality "1"]
[TimeControl "40/100:0"]
[WhiteClock "0:29:57"]
[BlackClock "0:30:10"]

1. e4 {[%emt 0:00:00]} c6 {[%emt 0:00:00]} 2. d4 {[%emt 0:00:00]} d5 {[%emt 0:
00:00]} 3. e5 {[%emt 0:00:00]} Bf5 {[%emt 0:00:00]} 4. Be3 {[%emt 0:00:00]} e6
{[%emt 0:00:00]} 5. Nd2 {[%emt 0:00:00]} Nd7 {[%emt 0:00:00]} 6. Ngf3 {[%emt 0:
00:00]} Ne7 {[%emt 0:00:00]} 7. Be2 {[%emt 0:00:00]} Bg6 {[%emt 0:00:00]} 8.
Nh4 {[%emt 0:00:00]} Nf5 {[%emt 0:00:00]} 9. Nxf5 {[%emt 0:00:00]} Bxf5 {
[%emt 0:00:00]} 10. O-O {[%emt 0:00:00]} h5 {[%emt 0:00:00]} 11. c4 {[%emt 0:
00:00]} dxc4 {[%emt 0:00:00]} 12. Nxc4 {[%emt 0:00:00]} Be4 {[%emt 0:00:00]}
13. a4 {[%emt 0:00:00]} g6 {[%emt 0:00:00]} 14. a5 {[%emt 0:00:00]} Bd5 {
[%emt 0:00:00]} 15. Qd2 {[%emt 0:00:00]} Be7 {[%emt 0:00:00]} 16. Rfc1 {
[%emt 0:00:00]} Kf8 {[%emt 0:00:00]} 17. a6 {[%emt 0:00:00]} b6 {[%emt 0:00:00]
} 18. h3 {[%emt 0:00:00]} Rc8 {[%emt 0:00:00]} 19. Bf4 {[%emt 0:00:00]} Kg7 {
[%emt 0:00:00]} 20. Ne3 {[%emt 0:00:00]} Nb8 {[%emt 0:00:00]} 21. Rc3 {[%emt 0:
00:00]} Be4 {[%emt 0:00:00]} 22. Nc4 {[%emt 0:00:00]} Bd5 {[%emt 0:00:00]} 23.
Nd6 {[%emt 0:00:00]} Rc7 {[%emt 0:00:00]} 24. Rg3 {[%emt 0:00:00]} Rd7 {
[%emt 0:00:00]} 25. Bd3 {[%emt 0:00:00]} Rxd6 {[%emt 0:00:00]} 26. exd6 {
[%emt 0:00:00]} Bxd6 {[%emt 0:00:00]} 27. Be5+ {[%emt 0:00:00]} Bxe5 {[%emt 0:
00:00]} 28. dxe5 {[%emt 0:00:00]} Nd7 {[%emt 0:00:00]} 29. Qf4 {[%emt 0:00:00]}
Qe7 {[%emt 0:00:00]} 30. h4 {[%emt 0:00:00]} c5 {[%emt 0:00:00]} 31. Rd1 {
[%emt 0:00:00]} Nb8 {[%emt 0:00:00]} 32. Be4 {[%emt 0:00:00]} Rd8 {[%emt 0:00:
00]} 33. Rgd3 {[%emt 0:00:00]} Nxa6 {[%emt 0:00:00]} 34. Bxd5 {[%emt 0:00:00]}
exd5 {[%emt 0:00:00]} 35. Rxd5 {[%emt 0:00:00]} Rxd5 {[%emt 0:00:00]} 36. Rxd5
{[%emt 0:00:00]} Nc7 {[%emt 0:00:00]} 37. Rd6 {[%emt 0:00:00]} Ne6 {[%emt 0:00:
00]} 38. Qe4 {[%emt 0:00:00]} b5 {[%emt 0:00:13]} 39. g3 {[%emt 0:00:00]} a5 {
[%emt 0:00:00]} 40. Qd5 {[%emt 0:00:00]} a4 {[%emt 0:00:44]} 41. Rd7 {[%emt 0:
00:00]} Qe8 {[%emt 0:00:00]} 42. Ra7 {[%emt 0:00:00]} b4 {[%emt 0:00:00]} 43.
Ra8 {[%emt 0:00:00]} Qb5 {[%emt 0:00:00]} 44. Qf3 {[%emt 0:00:00]} 1-0

[Event "Gibraltar Masters 18th"]
[Site "Gibraltar"]
[Date "2020.01.27"]
[Round "7.26"]
[White "Lombaers, Peter"]
[Black "Maze, Sebastien"]
[Result "0-1"]
[ECO "E81"]
[WhiteElo "2383"]
[BlackElo "2550"]
[PlyCount "102"]
[EventDate "2020.01.21"]
[EventType "swiss"]
[EventRounds "10"]
[EventCountry "GGB"]
[SourceTitle "BritBase"]
[Source "John Saunders"]
[SourceDate "2021.06.05"]
[SourceVersion "1"]
[SourceVersionDate "2021.06.05"]
[SourceQuality "1"]
[TimeControl "40/100:0"]
[WhiteClock "0:19:14"]
[BlackClock "0:38:32"]

1. d4 {[%emt 0:00:00]} Nf6 {[%emt 0:00:00]} 2. c4 {[%emt 0:00:00]} g6 {[%emt 0:
00:00]} 3. f3 {[%emt 0:00:00]} d6 {[%emt 0:00:00]} 4. e4 {[%emt 0:00:00]} Bg7 {
[%emt 0:00:00]} 5. Nc3 {[%emt 0:00:00]} c6 {[%emt 0:00:00]} 6. Be3 {[%emt 0:00:
00]} a6 {[%emt 0:00:00]} 7. c5 {[%emt 0:00:00]} O-O {[%emt 0:00:00]} 8. Nge2 {
[%emt 0:00:00]} Nbd7 {[%emt 0:00:00]} 9. Qd2 {[%emt 0:00:00]} Qc7 {[%emt 0:00:
00]} 10. Ng3 {[%emt 0:00:00]} dxc5 {[%emt 0:00:00]} 11. dxc5 {[%emt 0:00:00]}
h5 {[%emt 0:00:00]} 12. Be2 {[%emt 0:00:00]} h4 {[%emt 0:00:00]} 13. Nf1 {
[%emt 0:00:00]} Ne5 {[%emt 0:00:00]} 14. Qc2 {[%emt 0:00:00]} Rd8 {[%emt 0:00:
00]} 15. Nd2 {[%emt 0:00:00]} h3 {[%emt 0:00:00]} 16. g3 {[%emt 0:00:00]} Be6 {
[%emt 0:00:00]} 17. O-O {[%emt 0:00:00]} Rd7 {[%emt 0:00:00]} 18. Na4 {[%emt 0:
00:00]} Rf8 {[%emt 0:00:00]} 19. Nb3 {[%emt 0:00:00]} Nh5 {[%emt 0:00:00]} 20.
g4 {[%emt 0:00:00]} Nf6 {[%emt 0:00:00]} 21. Kh1 {[%emt 0:00:00]} Rdd8 {
[%emt 0:00:00]} 22. Rg1 {[%emt 0:00:00]} Bxb3 {[%emt 0:00:00]} 23. axb3 {
[%emt 0:00:00]} Ned7 {[%emt 0:00:00]} 24. Raf1 {[%emt 0:00:00]} e5 {[%emt 0:00:
00]} 25. Rg3 {[%emt 0:00:00]} Rfe8 {[%emt 0:00:00]} 26. Rxh3 {[%emt 0:00:00]}
Nf8 {[%emt 0:00:00]} 27. Bc4 {[%emt 0:00:00]} Ne6 {[%emt 0:00:00]} 28. Bxe6 {
[%emt 0:00:00]} Rxe6 {[%emt 0:00:00]} 29. Rg3 {[%emt 0:00:00]} Nh7 {[%emt 0:00:
00]} 30. Rg2 {[%emt 0:00:00]} Ree8 {[%emt 0:00:00]} 31. Nb6 {[%emt 0:00:00]}
Nf8 {[%emt 0:00:00]} 32. Nc4 {[%emt 0:00:00]} Ne6 {[%emt 0:00:00]} 33. Nd6 {
[%emt 0:00:00]} Re7 {[%emt 0:00:00]} 34. b4 {[%emt 0:00:00]} Red7 {[%emt 0:00:
00]} 35. Rd2 {[%emt 0:00:00]} Bf8 {[%emt 0:00:00]} 36. Nc4 {[%emt 0:00:00]}
Rxd2 {[%emt 0:00:00]} 37. Bxd2 {[%emt 0:00:00]} Nd4 {[%emt 0:00:00]} 38. Qc1 {
[%emt 0:00:00]} Nb3 {[%emt 0:00:00]} 39. Qc3 {[%emt 0:00:00]} Nxd2 {[%emt 0:00:
00]} 40. Nxd2 {[%emt 0:00:00]} Bh6 {[%emt 0:00:00]} 41. Nc4 {[%emt 0:00:00]}
Rd4 {[%emt 0:00:00]} 42. Qb3 {[%emt 0:00:00]} Qe7 {[%emt 0:00:00]} 43. Rd1 {
[%emt 0:00:00]} Qh4 {[%emt 0:00:00]} 44. Kg2 {[%emt 0:00:00]} Bf4 {[%emt 0:00:
00]} 45. Rxd4 {[%emt 0:00:00]} Qxh2+ {[%emt 0:00:00]} 46. Kf1 {[%emt 0:00:00]}
exd4 {[%emt 0:00:00]} 47. Ke1 {[%emt 0:00:00]} Qh1+ {[%emt 0:00:00]} 48. Ke2 {
[%emt 0:00:00]} Qg2+ {[%emt 0:00:00]} 49. Kd1 {[%emt 0:00:00]} Qf1+ {[%emt 0:
00:00]} 50. Kc2 {[%emt 0:00:00]} Qe2+ {[%emt 0:00:00]} 51. Kb1 {[%emt 0:00:00]}
d3 {[%emt 0:00:00]} 0-1